bitfinex/quotes_SOLUSD_20250306
["timestamp","ask_amount","ask_price","bid_price","bid_amount"]
[1741267370631,30.71122529,148.39,148.38,0.14216157]
[1741267370925,30.71122529,148.39,148.34,81.3]
[1741267371129,30.71122529,148.37,148.34,81.3]
[1741267371427,37.45142529,148.37,148.35,0.14216157]
[1741267371631,37.45052529,148.39,148.35,0.14216157]
[1741267372016,6.7393,148.39,148.34,112.01122529]
[1741267372212,37.45052529,148.39,148.34,0.14216157]
[1741267372422,30.71122529,148.38,148.34,0.14216157]
[1741267372603,37.45052529,148.39,148.34,0.14216157]
[1741267372803,30.71122529,148.38,148.33,0.14216157]
[1741267373117,30.71122529,148.37,148.33,0.14216157]
[1741267373629,30.71122529,148.35,148.31,0.033]
[1741267373828,30.71122529,148.34,148.33,312.0]
[1741267374034,30.71122529,148.34,148.33,312.14216157]
[1741267374331,30.71122529,148.36,148.34,0.14216157]
[1741267374536,30.71122529,148.37,148.34,0.14216157]
[1741267374829,30.71122529,148.4,148.34,0.28432314]
[1741267375033,37.44982529,148.4,148.34,30.99554843]
[1741267376021,6.0879,148.41,148.37,0.14216157]
[1741267376336,30.71122529,148.39,148.37,0.14216157]
[1741267376713,35.58316106,148.39,148.34,0.14216157]
[1741267377637,4.87193577,148.39,148.34,30.85338686]
[1741267377935,11.64093577,148.39,148.36,0.14216157]
[1741267378116,37.48022529,148.39,148.36,0.14216157]
[1741267378313,6.769,148.39,148.36,0.14216157]
[1741267378618,0.03,148.39,148.36,0.28432314]
[1741267379011,0.03,148.39,148.36,0.14216157]
[1741267379333,37.48032529,148.39,148.35,0.14216157]
[1741267379514,37.48032529,148.39,148.33,30.74422529]
[1741267379708,0.03,148.39,148.35,0.14216157]
[1741267379903,6.7691,148.39,148.35,0.14216157]
[1741267380216,37.48032529,148.39,148.34,0.14216157]
[1741267380712,0.03,148.39,148.34,0.14216157]
[1741267381634,0.03,148.39,148.36,312.28432314]
[1741267381804,4.8807927,148.38,148.36,312.28432314]
[1741267382010,4.8807927,148.38,148.36,0.14216157]
[1741267382238,4.8807927,148.38,148.35,0.14216157]
[1741267382239,11.6202927,148.38,148.35,0.14216157]
[1741267382533,42.33151799,148.38,148.35,0.14216157]
[1741267382933,4.8807927,148.38,148.34,0.14216157]
[1741267383135,37.48032529,148.39,148.34,0.14216157]
[1741267383920,30.71122529,148.36,148.33,81.333]
[1741267384126,37.45192529,148.36,148.33,0.033]
[1741267384733,30.71122529,148.35,148.33,0.033]
[1741267385041,30.71122529,148.34,148.33,0.033]
[1741267385710,67.46495058,148.34,148.33,0.033]
[1741267386241,43.49492529,148.34,148.33,0.033]
[1741267386437,36.75372529,148.34,148.33,0.033]
[1741267386960,43.49492529,148.34,148.33,0.033]
[1741267387526,61.76923669,148.34,148.31,0.033]
[1741267387739,31.0580114,148.34,148.31,0.033]
[1741267388038,51.4,148.33,148.31,0.033]
[1741267388256,30.71122529,148.26,148.24,312.0]
[1741267388458,30.71122529,148.25,148.21,81.3]
[1741267388649,30.71122529,148.26,148.21,88.0467]
[1741267389157,1.4212114,148.3,148.25,0.14216157]
[1741267389158,30.71122529,148.3,148.25,0.14216157]
[1741267389339,30.71122529,148.31,148.25,30.85338686]
[1741267389530,30.71122529,148.32,148.27,0.14216157]
[1741267389862,30.71122529,148.31,148.27,0.14216157]
[1741267390039,30.71122529,148.31,148.29,0.14216157]
[1741267390224,30.71122529,148.33,148.29,0.14216157]
[1741267390629,30.71122529,148.34,148.29,0.14216157]
[1741267390840,30.71122529,148.36,148.3,30.71122529]
[1741267391042,30.71122529,148.36,148.31,0.14216157]
[1741267391254,3.4212114,148.35,148.26,81.3]
[1741267391456,30.71122529,148.27,148.26,312.0]
[1741267391641,30.71122529,148.33,148.26,312.0]
[1741267391642,82.2212114,148.32,148.26,312.0]
[1741267391845,30.71122529,148.3,148.27,0.14216157]
[1741267392247,30.71122529,148.31,148.27,0.14216157]
[1741267392453,30.71122529,148.32,148.26,37.59828686]
[1741267392631,30.71122529,148.32,148.26,30.85338686]
[1741267392830,30.71122529,148.31,148.26,0.14216157]
[1741267393264,30.71122529,148.32,148.26,0.14216157]
[1741267393827,37.45322529,148.33,148.27,0.14216157]
[1741267394027,30.71122529,148.33,148.27,0.14216157]
[1741267394228,30.71122529,148.34,148.29,0.14216157]
[1741267394656,30.71122529,148.33,148.29,0.14216157]
[1741267395078,87.5399,148.37,148.31,0.14216157]
[1741267395234,37.45112529,148.37,148.34,0.14216157]
[1741267395434,6.6399,148.37,148.34,0.14216157]
[1741267395668,30.71122529,148.36,148.34,0.14216157]
[1741267395961,30.71122529,148.36,148.31,0.14216157]
[1741267396353,30.71122529,148.35,148.31,0.14216157]
[1741267397334,6.0241,148.38,148.31,88.32692314]
[1741267397544,43.47472529,148.38,148.33,0.14216157]
[1741267397840,30.71122529,148.37,148.33,0.14216157]
[1741267398043,30.71122529,148.37,148.31,112.15338686]
[1741267398044,30.71122529,148.37,148.32,0.14216157]
[1741267398248,37.45112529,148.37,148.32,0.14216157]
[1741267398453,6.7399,148.37,148.32,30.85338686]
[1741267398832,6.7399,148.37,148.35,0.14216157]
[1741267399053,30.71122529,148.36,148.35,0.14216157]
[1741267399732,37.45112529,148.37,148.35,0.14216157]
[1741267399951,30.71122529,148.36,148.35,0.14216157]
[1741267400343,37.45152529,148.36,148.35,0.14216157]
[1741267400952,37.45152529,148.36,148.32,0.14216157]
[1741267401262,30.71122529,148.35,148.32,0.14216157]
[1741267401754,30.71122529,148.37,148.31,30.99554843]
[1741267401974,36.73532529,148.38,148.33,0.14216157]
[1741267402144,0.03,148.39,148.35,0.14216157]
[1741267402351,0.03,148.39,148.36,0.14216157]
[1741267402936,0.03,148.37,148.36,0.14216157]
[1741267403937,0.03,148.37,148.36,312.28432314]
[1741267404468,0.03,148.37,148.36,431.03584843]
[1741267404848,0.03,148.37,148.36,424.29554843]
[1741267405053,0.03,148.37,148.36,393.58432314]
[1741267405736,0.03,148.37,148.36,424.29554843]
[1741267405941,0.03,148.37,148.36,431.03584843]
[1741267406143,0.03,148.39,148.37,1.8258]
[1741267406340,0.03,148.39,148.38,37.73494843]
[1741267406661,0.03,148.39,148.38,119.03494843]
[1741267408070,0.03,148.39,148.38,81.3]
[1741267408559,0.03,148.39,148.38,81.44216157]
[1741267409244,0.03,148.39,148.38,424.29554843]
[1741267409854,0.03,148.39,148.38,431.03494843]
[1741267410960,0.03,148.39,148.38,461.74617372]
[1741267411166,0.03,148.39,148.38,431.03494843]
[1741267411676,0.03,148.39,148.38,434.47531207]
[1741267412678,121.91736469,148.43,148.39,0.28432314]
[1741267412877,121.91736469,148.43,148.41,0.28432314]
[1741267413382,121.91736469,148.43,148.42,0.14216157]
[1741267414563,121.91736469,148.43,148.42,7.02192314]
[1741267414966,121.91736469,148.43,148.42,37.73314843]
[1741267415491,121.91736469,148.43,148.42,119.03314843]
[1741267415659,87.61516469,148.43,148.42,119.03314843]
[1741267415857,18.10036469,148.43,148.42,431.03314843]
[1741267416094,6.469e-05,148.43,148.42,431.03314843]
[1741267416461,6.469e-05,148.43,148.42,434.34431055]
[1741267416657,0.03,148.45,148.43,0.14216157]
[1741267416966,0.03,148.45,148.44,32.40944803]
[1741267417886,0.03,148.45,148.44,113.70944803]
[1741267418586,0.03,148.54,148.45,0.28432314]
[1741267418883,0.03,148.54,148.51,0.14216157]
[1741267419084,0.03,148.54,148.52,0.14216157]
[1741267419882,0.03,148.54,148.53,312.14216157]
[1741267420388,30.74122529,148.54,148.53,0.14216157]
[1741267420763,37.47332529,148.54,148.53,0.14216157]
[1741267420965,6.7621,148.54,148.53,0.14216157]
[1741267422663,0.03,148.54,148.53,0.14216157]
[1741267423087,30.74122529,148.54,148.53,0.14216157]
[1741267423279,0.03,148.54,148.53,312.14216157]
[1741267423591,30.74122529,148.54,148.46,112.01122529]
[1741267423792,30.71122529,148.52,148.47,0.28432314]
[1741267424093,0.03,148.54,148.47,0.28432314]
[1741267424094,30.74122529,148.54,148.49,0.28432314]
[1741267424271,30.74122529,148.54,148.49,81.58432314]
[1741267424480,0.03,148.54,148.49,81.58432314]
[1741267425085,0.03,148.54,148.51,0.28432314]
[1741267425284,0.03,148.54,148.52,0.14216157]
[1741267426292,0.03,148.54,148.51,30.85338686]
[1741267426464,0.03,148.54,148.53,312.14216157]
[1741267429781,0.03,148.54,148.53,312.28432314]
[1741267431471,0.03,148.54,148.53,431.02814843]
[1741267433101,80.83,148.65,148.6,0.28432314]
[1741267433298,0.03,148.65,148.6,30.99554843]
[1741267433503,0.03,148.65,148.61,0.28432314]
[1741267433873,0.03,148.65,148.61,30.99554843]
[1741267434079,0.03,148.65,148.63,0.28432314]
[1741267434491,0.03,148.65,148.63,0.14216157]
[1741267436310,0.03,148.65,148.62,0.14216157]
[1741267436609,0.03,148.65,148.62,0.28432314]
[1741267437875,30.71122529,148.64,148.58,1.41254907]
[1741267438088,30.71122529,148.64,148.58,30.71122529]
[1741267438288,30.71122529,148.64,148.59,0.28432314]
[1741267438497,0.03,148.65,148.59,30.99554843]
[1741267438701,30.71122529,148.64,148.59,0.28432314]
[1741267439008,30.71122529,148.61,148.57,81.3]
[1741267439191,30.71122529,148.61,148.57,0.28432314]
[1741267439397,30.71122529,148.62,148.56,30.71122529]
[1741267439584,104.3468,148.64,148.57,30.71122529]
[1741267439899,30.71122529,148.62,148.58,0.28432314]
[1741267440080,30.71122529,148.62,148.57,30.71122529]
[1741267440280,30.71122529,148.63,148.58,0.28432314]
[1741267440500,87.5276,148.64,148.58,0.28432314]
[1741267440698,30.71122529,148.63,148.58,0.28432314]
[1741267440905,80.8,148.64,148.58,0.28432314]
[1741267441101,6.7284,148.63,148.58,0.28432314]
[1741267441301,37.43962529,148.63,148.58,0.28432314]
[1741267441496,87.5278,148.64,148.6,0.28432314]
[1741267441808,6.7572,148.65,148.6,30.99554843]
[1741267442800,37.46842529,148.65,148.6,0.28432314]
[1741267443000,0.03,148.65,148.6,37.72484843]
[1741267443303,37.46842529,148.65,148.6,0.28432314]
[1741267443605,37.46842529,148.65,148.63,0.14216157]
[1741267443814,6.7572,148.65,148.63,0.14216157]
[1741267444010,0.03,148.65,148.63,0.14216157]
[1741267444193,0.03,148.65,148.61,0.14216157]
[1741267444395,0.03,148.63,148.61,0.14216157]
[1741267445087,0.03,148.63,148.6,0.28432314]
[1741267446205,0.03,148.63,148.6,7.01372314]
[1741267446402,0.03,148.63,148.6,37.72494843]
[1741267447087,0.03,148.63,148.62,0.14216157]
[1741267447291,0.03,148.63,148.62,37.72404843]
[1741267447506,0.03,148.63,148.62,39.13635324]
[1741267447808,0.03,148.63,148.62,122.43305324]
[1741267448004,0.03,148.65,148.63,0.14216157]
[1741267448215,0.03,148.65,148.64,32.40754035]
[1741267448510,0.03,148.65,148.64,0.28432314]
[1741267448724,0.03,148.65,148.64,112.29554843]
[1741267449218,0.03,148.65,148.63,0.14216157]
[1741267449418,0.03,148.65,148.62,81.3]
[1741267449785,0.03,148.65,148.63,0.14216157]
[1741267450321,0.03,148.65,148.63,0.28432314]
[1741267451326,0.03,148.65,148.64,30.85338686]
[1741267451514,0.03,148.69,148.65,0.28432314]
[1741267451712,0.03,148.69,148.65,112.29554843]
[1741267451916,0.03,148.69,148.65,81.58432314]
[1741267452090,30.71122529,148.68,148.65,81.58432314]
[1741267452693,37.46662529,148.69,148.65,81.58432314]
[1741267453330,0.03,148.69,148.65,81.58432314]
[1741267453495,30.74122529,148.69,148.65,81.58432314]
[1741267453990,0.03,148.69,148.67,0.14216157]
[1741267454220,0.03,148.69,148.68,312.28432314]
[1741267454906,19.03907845,148.73,148.69,0.28432314]
[1741267455505,19.03907845,148.73,148.69,7.00952314]
[1741267455894,25.24777845,148.75,148.7,19.03907845]
[1741267456197,0.03,148.75,148.71,19.32340159]
[1741267457200,0.03,148.75,148.71,100.62340159]
[1741267457401,19.03907845,148.74,148.71,81.58432314]
[1741267457638,25.79187845,148.75,148.71,0.14216157]
[1741267457936,19.03907845,148.74,148.71,0.14216157]
[1741267458225,19.03907845,148.74,148.7,0.14216157]
[1741267458226,19.03907845,148.73,148.7,0.14216157]
[1741267458428,19.06907845,148.74,148.7,0.14216157]
[1741267458635,30.46102893,148.73,148.7,0.14216157]
[1741267458802,30.46102893,148.73,148.69,81.3]
[1741267458998,30.46102893,148.7,148.65,81.3]
[1741267459201,30.46102893,148.69,148.65,81.3]
[1741267459426,6.7258,148.68,148.66,0.28432314]
[1741267459615,6.4153,148.71,148.66,0.14216157]
[1741267459823,30.46102893,148.69,148.66,0.14216157]
[1741267460005,30.46102893,148.69,148.66,0.28432314]
[1741267460635,30.46102893,148.67,148.63,81.51324235]
[1741267460813,30.46102893,148.66,148.63,0.21324235]
[1741267461005,30.46102893,148.66,148.64,0.14216157]
[1741267461205,30.46102893,148.67,148.64,0.14216157]
[1741267461425,37.18682893,148.68,148.64,0.14216157]
[1741267461633,6.7258,148.68,148.64,0.28432314]
[1741267461835,30.46102893,148.67,148.64,0.28432314]
[1741267462336,37.18682893,148.68,148.64,0.28432314]
[1741267463553,37.18682893,148.68,148.64,0.14216157]
[1741267464050,6.7258,148.68,148.64,0.14216157]
[1741267464263,37.18652893,148.69,148.64,0.14216157]
[1741267464462,6.725,148.7,148.65,0.14216157]
[1741267464627,37.18602893,148.7,148.65,0.14216157]
[1741267465149,30.46102893,148.68,148.65,0.14216157]
[1741267465348,30.46102893,148.66,148.64,0.14216157]
[1741267465644,30.46102893,148.67,148.63,0.21324235]
[1741267465836,30.46102893,148.67,148.63,0.35540392]
[1741267466150,30.46102893,148.68,148.64,0.14216157]
[1741267466745,6.7251,148.7,148.65,0.14216157]
[1741267466951,37.18612893,148.7,148.65,0.14216157]
[1741267467456,30.46102893,148.68,148.65,0.14216157]
[1741267467754,30.46102893,148.7,148.66,0.14216157]
[1741267467959,36.87632893,148.71,148.66,0.14216157]
[1741267468328,43.60092893,148.71,148.66,0.14216157]
[1741267468562,30.46102893,148.7,148.66,0.14216157]
[1741267468857,30.46102893,148.69,148.66,0.14216157]
[1741267469151,30.46102893,148.67,148.64,81.3]
[1741267469344,30.46102893,148.66,148.65,0.14216157]
[1741267469652,30.46102893,148.68,148.65,0.14216157]
[1741267469951,30.46102893,148.69,148.66,0.14216157]
[1741267470154,0.03,148.74,148.68,342.6031905]
[1741267470336,30.49102893,148.74,148.69,0.14216157]
[1741267470667,30.46102893,148.72,148.68,81.44216157]
[1741267471664,30.46102893,148.7,148.68,81.44216157]
[1741267471828,30.46102893,148.72,148.69,0.14216157]
[1741267472029,30.46102893,148.71,148.69,0.14216157]
[1741267472230,6.7237,148.73,148.69,0.14216157]
[1741267472456,30.46102893,148.7,148.65,0.033]
[1741267472768,80.8,148.72,148.65,0.033]
[1741267472769,30.46102893,148.69,148.65,7.04442314]
[1741267473134,30.46102893,148.7,148.65,7.04442314]
[1741267473338,30.46102893,148.71,148.65,37.50545207]
[1741267473651,30.46102893,148.71,148.68,0.14216157]
[1741267474039,37.18562893,148.71,148.68,0.14216157]
[1741267474240,37.18562893,148.71,148.67,0.28432314]
[1741267474458,37.18562893,148.71,148.67,0.14216157]
[1741267474745,30.46102893,148.68,148.65,0.033]
[1741267474959,23.5358,148.71,148.65,0.17516157]
[1741267475143,30.46102893,148.7,148.65,0.17516157]
[1741267475345,30.46102893,148.7,148.66,0.14216157]
[1741267476063,37.18612893,148.7,148.66,0.14216157]
[1741267476368,30.46102893,148.67,148.65,0.033]
[1741267476669,30.46102893,148.66,148.65,0.033]
[1741267478052,37.18772893,148.66,148.65,0.033]
[1741267480540,25.79441099,148.66,148.65,0.033]
[1741267480754,80.8,148.65,148.53,89.9887]
[1741267480960,19.06771099,148.57,148.53,88.0655]
[1741267481175,19.06771099,148.58,148.53,88.0655]
[1741267481476,19.06771099,148.57,148.54,0.28432314]
[1741267481650,19.06771099,148.57,148.53,81.333]
[1741267481846,106.16631099,148.61,148.54,0.28432314]
[1741267481847,19.06771099,148.58,148.54,0.28432314]
[1741267482868,87.0986,148.61,148.54,7.01642314]
[1741267483059,19.06771099,148.59,148.54,7.01642314]
[1741267483770,99.86771099,148.61,148.57,0.14216157]
[1741267483965,19.06771099,148.6,148.57,0.14216157]
[1741267484163,99.86771099,148.61,148.57,7.01512314]
[1741267484372,80.8,148.61,148.57,7.01512314]
[1741267484871,99.86771099,148.61,148.57,7.01512314]
[1741267485051,19.06771099,148.6,148.57,0.14216157]
[1741267485387,19.06771099,148.6,148.58,0.14216157]
[1741267485559,99.86771099,148.61,148.58,0.14216157]
[1741267485952,19.06771099,148.6,148.57,0.14216157]
[1741267486267,19.06771099,148.58,148.57,0.14216157]
[1741267486574,19.06771099,148.58,148.53,0.033]
[1741267486775,6.7295,148.6,148.54,0.28432314]
[1741267486992,19.06771099,148.58,148.54,0.28432314]
[1741267487288,19.06771099,148.58,148.56,0.14216157]
[1741267487663,19.06771099,148.57,148.55,312.0]
[1741267487978,19.06771099,148.56,148.53,0.033]
[1741267488184,19.06771099,148.54,148.53,0.033]
[1741267488551,30.54418487,148.54,148.53,0.033]
[1741267489751,111.34418487,148.57,148.53,0.033]
[1741267489951,30.54418487,148.57,148.53,0.033]
[1741267490162,30.54418487,148.56,148.53,0.033]
[1741267490378,30.54418487,148.55,148.53,0.033]
[1741267490680,30.54418487,148.54,148.53,0.033]
[1741267492255,67.82046974,148.54,148.53,0.033]
[1741267492770,30.54418487,148.48,148.44,81.333]
[1741267492962,30.54418487,148.48,148.44,88.0697]
[1741267493175,30.54418487,148.48,148.45,0.28432314]
[1741267493357,30.54418487,148.47,148.44,0.033]
[1741267493559,30.54418487,148.46,148.44,0.033]
[1741267493758,30.54418487,148.46,148.45,0.14216157]
[1741267494073,30.54418487,148.46,148.44,312.033]
[1741267494662,30.54418487,148.46,148.45,0.14216157]
[1741267494861,30.54418487,148.46,148.44,312.033]
[1741267495369,6.7349,148.48,148.45,0.14216157]
[1741267495568,30.54418487,148.46,148.45,0.14216157]
[1741267495975,30.44418487,148.46,148.45,0.14216157]
[1741267496267,30.44418487,148.46,148.44,0.033]
[1741267496577,30.54418487,148.45,148.44,0.033]
[1741267497191,80.8,148.48,148.44,0.033]
[1741267497375,30.54418487,148.45,148.44,0.033]
[1741267497553,111.34418487,148.46,148.44,0.033]
[1741267497754,30.54418487,148.45,148.44,0.033]
[1741267498871,43.48228487,148.45,148.44,0.033]
[1741267499160,132.2,148.44,148.39,0.033]
[1741267499359,30.54418487,148.4,148.39,0.033]
[1741267499656,61.08836974,148.4,148.39,0.033]
[1741267500063,30.54418487,148.4,148.39,0.033]
[1741267500275,61.08836974,148.4,148.39,0.033]
[1741267500861,67.82686974,148.4,148.39,0.033]
[1741267501371,6.76,148.42,148.39,0.033]
[1741267501674,30.54418487,148.4,148.39,0.033]
[1741267501989,30.54418487,148.41,148.39,0.033]
[1741267502181,37.30418487,148.42,148.39,0.033]
[1741267502366,6.76,148.42,148.39,0.033]
[1741267502560,52.8212114,148.49,148.42,0.14216157]
[1741267502759,30.54418487,148.48,148.42,30.68634644]
[1741267502985,30.54418487,148.45,148.42,0.14216157]
[1741267503161,30.54418487,148.47,148.42,0.28432314]
[1741267504069,30.54418487,148.47,148.42,0.14216157]
[1741267504885,30.54418487,148.48,148.43,0.14216157]
[1741267505586,30.54418487,148.45,148.43,0.14216157]
[1741267505790,30.54418487,148.45,148.4,0.28432314]
[1741267505959,30.54418487,148.45,148.44,0.14216157]
[1741267506580,30.54418487,148.45,148.4,0.28432314]
[1741267507103,111.34418487,148.46,148.4,30.82850801]
[1741267507570,111.34418487,148.46,148.42,30.82850801]
[1741267507571,80.8,148.46,148.42,30.82850801]
[1741267507774,80.8,148.46,148.44,0.14216157]
[1741267507973,30.54418487,148.48,148.44,0.14216157]
[1741267508179,30.54418487,148.45,148.4,81.3]
[1741267508486,30.54418487,148.45,148.41,0.14216157]
[1741267509061,80.8,148.47,148.41,30.82850801]
[1741267509283,30.54418487,148.5,148.45,0.28432314]
[1741267509466,30.54418487,148.48,148.45,312.14216157]
[1741267509664,30.54418487,148.46,148.45,0.14216157]
[1741267509876,30.54418487,148.47,148.41,30.68634644]
[1741267510076,30.54418487,148.47,148.41,111.98634644]
[1741267510270,30.54418487,148.48,148.42,0.14216157]
[1741267510467,30.54418487,148.49,148.44,0.14216157]
[1741267510668,80.8,148.51,148.44,112.12850801]
[1741267510871,30.54418487,148.5,148.44,112.12850801]
[1741267511072,30.54418487,148.49,148.44,81.58432314]
[1741267511280,30.54418487,148.45,148.42,0.28432314]
[1741267511480,30.54418487,148.45,148.42,0.14216157]
[1741267512081,30.54418487,148.45,148.39,111.87718487]
[1741267512366,30.54418487,148.44,148.4,0.28432314]
[1741267512565,30.54418487,148.5,148.43,342.54418487]
[1741267512770,30.54418487,148.52,148.46,30.82850801]
[1741267512977,30.54418487,148.51,148.46,0.14216157]
[1741267513273,30.54418487,148.51,148.46,112.12850801]
[1741267513483,30.54418487,148.52,148.46,112.12850801]
[1741267513976,37.27738487,148.52,148.46,81.58432314]
[1741267514287,30.54418487,148.52,148.46,112.12850801]
[1741267514804,6.7332,148.52,148.46,112.12850801]
[1741267514972,80.8,148.53,148.48,0.28432314]
[1741267514973,118.07698487,148.53,148.48,0.28432314]
[1741267515291,30.54418487,148.52,148.48,0.28432314]
[1741267515966,30.54418487,148.52,148.48,0.14216157]
[1741267516171,6.7334,148.52,148.51,0.14216157]
[1741267516382,37.27758487,148.52,148.51,0.14216157]
[1741267516690,80.8,148.53,148.47,30.82850801]
[1741267516990,30.54418487,148.52,148.47,30.82850801]
[1741267517589,30.54418487,148.52,148.47,0.28432314]
[1741267517977,37.27768487,148.51,148.47,0.28432314]
[1741267519090,6.7335,148.51,148.47,0.28432314]
[1741267519293,0.03,148.52,148.51,0.28432314]
[1741267519675,0.03,148.52,148.51,312.28432314]
[1741267519877,6.763,148.52,148.51,312.14216157]
[1741267520078,30.57418487,148.52,148.51,312.14216157]
[1741267520270,30.57418487,148.52,148.49,0.14216157]
[1741267520477,30.54418487,148.51,148.49,0.14216157]
[1741267520691,0.03,148.52,148.48,0.28432314]
[1741267520894,0.03,148.52,148.48,118.86320801]
[1741267521103,0.03,148.52,148.49,0.14216157]
[1741267521277,0.03,148.52,148.49,0.28432314]
[1741267521477,0.03,148.52,148.47,30.54418487]
[1741267521779,30.54418487,148.51,148.47,0.14216157]
[1741267522291,37.27808487,148.51,148.47,0.14216157]
[1741267522503,30.54418487,148.49,148.44,81.3]
[1741267522669,30.54418487,148.49,148.44,88.0365]
[1741267522874,118.07808487,148.51,148.45,0.28432314]
[1741267523087,118.07778487,148.51,148.45,30.82850801]
[1741267523281,0.03,148.52,148.51,0.28432314]
[1741267523482,87.5299,148.59,148.51,113.54192366]
[1741267523694,6.7299,148.59,148.55,0.28432314]
[1741267523896,37.27358487,148.6,148.55,0.28432314]
[1741267524311,30.54418487,148.61,148.56,0.14216157]
[1741267524598,30.57418487,148.62,148.57,0.14216157]
[1741267524779,0.03,148.62,148.58,0.14216157]
[1741267524983,30.57418487,148.62,148.58,0.14216157]
[1741267526195,30.54418487,148.6,148.57,0.14216157]
[1741267526379,30.54418487,148.59,148.57,0.14216157]
[1741267526581,30.54418487,148.58,148.54,0.14216157]
[1741267526787,30.54418487,148.57,148.55,312.0]
[1741267526983,30.54418487,148.56,148.55,312.0]
[1741267527186,30.54418487,148.56,148.5,111.84418487]
[1741267527399,30.54418487,148.55,148.5,81.3]
[1741267527599,30.54418487,148.54,148.49,1.864]
[1741267527902,30.54418487,148.54,148.5,0.28432314]
[1741267528077,30.54418487,148.55,148.5,0.28432314]
[1741267528277,80.8,148.57,148.5,0.28432314]
[1741267528484,30.54418487,148.55,148.49,39.14248487]
[1741267528889,30.54418487,148.54,148.5,0.14216157]
[1741267529099,30.54418487,148.54,148.5,0.28432314]
[1741267529894,30.54418487,148.53,148.49,0.28432314]
[1741267530113,30.54418487,148.52,148.49,312.28432314]
[1741267530281,80.8,148.55,148.49,312.0]
[1741267530282,30.54418487,148.5,148.49,312.0]
[1741267530603,30.54418487,148.5,148.49,312.14216157]
[1741267530903,30.54418487,148.5,148.49,312.0]
[1741267531100,37.27818487,148.5,148.49,312.0]
[1741267531611,37.27818487,148.5,148.49,312.14216157]
[1741267531774,136.92638487,148.5,148.44,0.033]
[1741267531979,30.54418487,148.46,148.44,0.033]
[1741267532610,30.54418487,148.45,148.44,0.033]
[1741267533299,87.5346,148.49,148.44,0.17516157]
[1741267533507,30.54418487,148.47,148.44,0.17516157]
[1741267533806,30.54418487,148.46,148.44,0.17516157]
[1741267534400,104.3707,148.49,148.44,30.71934644]
[1741267534401,80.8,148.49,148.44,30.71934644]
[1741267534625,30.54418487,148.5,148.44,37.45594644]
[1741267534906,6.7337,148.51,148.49,0.14216157]
[1741267535414,6.7337,148.51,148.45,0.28432314]
[1741267536193,30.54418487,148.5,148.45,0.28432314]
[1741267536905,30.54418487,148.5,148.45,7.02042314]
[1741267537203,30.54418487,148.5,148.45,0.28432314]
[1741267537408,37.27818487,148.5,148.45,0.28432314]
[1741267538104,30.54418487,148.49,148.45,0.28432314]
[1741267538310,30.54418487,148.49,148.48,0.14216157]
[1741267538521,37.27818487,148.5,148.48,0.14216157]
[1741267538708,37.27818487,148.5,148.45,0.14216157]
[1741267539316,37.27818487,148.5,148.45,0.28432314]
[1741267539492,118.07738487,148.52,148.47,0.28432314]
[1741267540821,118.07738487,148.52,148.47,0.14216157]
[1741267541311,87.5332,148.52,148.47,0.14216157]
[1741267541490,80.8,148.52,148.47,30.68634644]
[1741267541689,16.859,148.56,148.52,0.14216157]
[1741267541690,111.34418487,148.55,148.52,0.14216157]
[1741267541907,30.54418487,148.54,148.52,0.14216157]
[1741267542216,118.07598487,148.55,148.5,0.28432314]
[1741267542409,80.8,148.55,148.5,30.82850801]
[1741267542614,87.5319,148.55,148.5,30.82850801]
[1741267544020,118.07608487,148.55,148.5,0.28432314]
[1741267544314,118.10608487,148.55,148.5,0.28432314]
[1741267544713,30.54418487,148.54,148.5,0.28432314]
[1741267545011,37.27678487,148.53,148.5,0.14216157]
[1741267545213,6.7326,148.53,148.5,312.14216157]
[1741267546998,118.07678487,148.53,148.5,312.14216157]
[1741267547324,30.54418487,148.52,148.5,312.0]
[1741267547500,30.54418487,148.52,148.51,0.14216157]
[1741267547917,118.07678487,148.53,148.51,0.14216157]
[1741267548114,87.5326,148.53,148.51,0.14216157]
[1741267548902,118.07678487,148.53,148.51,0.14216157]
[1741267549819,30.54418487,148.52,148.51,0.14216157]
[1741267550223,87.5326,148.53,148.51,0.14216157]
[1741267551421,118.07678487,148.53,148.51,0.14216157]
[1741267551642,118.11750087,148.53,148.51,0.14216157]
[1741267552003,30.54418487,148.52,148.51,0.14216157]
[1741267552204,87.573316,148.53,148.49,0.033]
[1741267552437,30.54418487,148.51,148.49,0.033]
[1741267552611,104.404916,148.53,148.49,0.033]
[1741267552915,19.09700032,148.52,148.49,0.033]